[Event "Chinese League Division-A 2024"]
[Site "Fuling Chongqing"]
[Date "2024.07.07"]
[Round "10.17"]
[White "Kong, Xiangrui"]
[Black "Xiao, Tong"]
[Result "1/2-1/2"]
[ECO "B90"]
[WhiteElo "2439"]
[BlackElo "2518"]
[Annotator "TA"]
[PlyCount "160"]
[EventDate "2024.06.28"]
[EventType "team-tourn"]
[EventCountry "CHN"]
[SourceTitle "playchess.com"]
[Source "ChessBase"]
[SourceQuality "1"]
[TimeControl "40/5400+30:1800+30"]

{[%evp 81,160,-121,-121,-121,-121,-121,-88,-89,-53,-88,-89,-89,-89,-89,0,-89,-96,-138,-53,-56,-57,-64,-64,-72,-28,-28,-20,-20,-20,-20,-20,-28,-28,-28,-28,-28,0,-20,-8,-36,-36,-36,-36,-36,-36,-36,-36,-36,-36,-36,-36,-36,-36,-36,-36,-36,-28,-36,-36,-36,-36,-36,-36,-36,-36,-36,-36,-36,-36,-36,-36,-36,-36,-36,-36,-36,-36,-36,-36,-36,-36]} 1. e4 {[%emt 0:00:02]} c5 {[%emt 0:00:11]} 2. Nf3 {[%emt 0:00:07]} d6 {[%emt 0:00:13]} 3. d4 {[%emt 0:00:14]} cxd4 {[%emt 0:00:08]} 4. Nxd4 {[%emt 0:00:05]} Nf6 {[%emt 0:00:08]} 5. Nc3 {[%emt 0:00:05]} a6 {[%emt 0:00:06]} 6. Be3 {[%emt 0:00:15]} Ng4 {[%emt 0:00:24]} 7. Bg5 {[%emt 0:01:24]} h6 {[%emt 0:00:13]} 8. Bh4 {[%emt 0:00:06]} g5 {[%emt 0:00:09]} 9. Bg3 {[%emt 0:00:03]} Bg7 {[%emt 0:00:07]} 10. Qd2 {[%emt 0:00:14]} Nc6 {[%emt 0:01:24]} 11. Nb3 {[%emt 0:00:05]} b5 {[%emt 0:00:50]} 12. h4 {[%emt 0:01:16] B90: Sicilian Najdorf: Unusual White 6th moves, 6 Be3 Ng4 and 6 Be3 e5.} gxh4 {[%emt 0:02:19]} 13. Bxh4 {[%emt 0:00:31]} Nge5 {[%emt 0:02:48]} 14. Nd5 {[%emt 0:00:45]} Be6 $146 {[%emt 0:07:37]} ({Predecessor:} 14... Nc4 15. Bxc4 bxc4 16. Nc1 Be6 17. Ne2 Rb8 18. Rb1 Bxd5 19. exd5 Ne5 20. Bg3 Qc8 {½-½ Giri,A (2755)-Gelfand,B (2743) Moscow Tal Memorial 10th Blitz 2016 (3)}) 15. f4 {[%emt 0:15:27]} Nc4 {[%emt 0:01:35]} 16. Bxc4 {[%emt 0:00:13]} bxc4 {[%emt 0:00:05]} 17. Nc1 {[%emt 0:11:18]} f5 {[%emt 0:29:51]} 18. exf5 {[%emt 0:32:16]} Bxf5 {[%emt 0:00:24]} 19. c3 {[%emt 0:00:11]} Be4 {[%emt 0:05:29]} 20. Ne2 {[%emt 0:11:18]} Qa5 {[%emt 0:09:03]} 21. Ne3 {[%emt 0:01:11]} d5 {[%emt 0:01:33]} 22. O-O {[%emt 0:02:25]} d4 {[%emt 0:02:31]} 23. Nxc4 {[%emt 0:02:51]} Qc5 {[%emt 0:01:16]} 24. b3 {[%emt 0:00:51]} dxc3+ {[%emt 0:00:38]} 25. Qe3 {[%emt 0:00:08]} Qxe3+ {[%emt 0:00:58]} 26. Nxe3 {[%emt 0:00:01]} c2 {[%emt 0:04:54]} 27. Rac1 {[%emt 0:03:51]} Bb2 {[%emt 0:00:30]} 28. Nxc2 {[%emt 0:01:19]} Bxc1 {[%emt 0:03:29]} 29. Rxc1 {[%emt 0:00:01]} Bxc2 {[%emt 0:05:01]} 30. Rxc2 {[%emt 0:00:01]} Rc8 {[%emt 0:00:42]} 31. Nd4 {[%emt 0:11:42]} Kd7 {[%emt 0:00:05]} 32. Nxc6 {[%emt 0:00:05]} Rxc6 {[%emt 0:00:03]} 33. Rxc6 {[%emt 0:00:06]} Kxc6 {[%emt 0:00:01]} 34. Bxe7 {[%emt 0:00:04]} Re8 {[%emt 0:05:47]} 35. Bf6 {[%emt 0:00:01]} Re2 {[%emt 0:01:13]} 36. g4 {[%emt 0:04:36]} Rxa2 {[%emt 0:01:04]} 37. g5 {[%emt 0:02:34]} hxg5 {[%emt 0:00:08]} 38. fxg5 {[%emt 0:00:03]} Kd7 {[%emt 0:02:48]} 39. g6 {[%emt 0:00:13]} Ke6 {[%emt 0:00:12]} 40. g7 {[%emt 0:00:00]} Kf7 {[%emt 0:00:00]} 41. Kf1 {[%emt 0:06:54]} Ra3 {[%emt 0:00:16]} (41... Kxf6 42. g8=Q (42. g8=R a5 $11) 42... Ke5 43. Qh8+ Kf5 44. Qh3+ Kg5 45. Qc3 $18) 42. Ke2 {[%emt 0:00:10]} Rxb3 {[%emt 0:00:05]} (42... Kxf6 $2 {perishes.} 43. g8=Q (43. g8=R Rxb3 44. Rc8 Rb6 $11) 43... Ra2+ 44. Kd3 $18) 43. Kd2 {[%emt 0:00:44]} a5 {[%emt 0:02:55]} (43... Kxf6 $2 {loses.} 44. g8=Q (44. g8=R Rb5 $11) 44... Rb2+ 45. Ke3 $18) 44. Kc2 {[%emt 0:03:08]} a4 {[%emt 0:00:57]} 45. Bc3 {[%emt 0:05:34]} Rb7 {[%emt 0:04:29]} 46. Bb2 {[%emt 0:00:32]} Rb8 {[%emt 0:00:24]} 47. Be5 {[%emt 0:00:09]} Rb7 {[%emt 0:01:04]} 48. Bb2 {[%emt 0:00:10]} Rb5 {[%emt 0:00:23]} 49. Kc1 {[%emt 0:01:07]} Rg5 {[%emt 0:04:44]} (49... Rb3 $17 {( -> ...a3)} 50. Kc2 Kg8) 50. Kb1 $15 {[%emt 0:01:14]} Ke6 {[%emt 0:01:19]} 51. Ka2 {[%emt 0:00:07]} Rg3 {[%emt 0:00:04]} 52. Bd4 {[%emt 0:00:59]} Kd5 {[%emt 0:00:13]} (52... Kf7 $5) 53. Bf6 {[%emt 0:00:09]} Kc4 {[%emt 0:00:21]} 54. Be5 {[%emt 0:00:05]} Rg2+ {[%emt 0:00:07]} 55. Ka3 {[%emt 0:00:03]} Kb5 {[%emt 0:00:06]} 56. Bf6 {[%emt 0:00:20]} Rg3+ {[%emt 0:01:52]} 57. Ka2 {[%emt 0:00:02]} Kb4 {[%emt 0:00:16]} 58. Be7+ {[%emt 0:00:21]} Kb5 {[%emt 0:00:12]} (58... Kc4 $5 59. Bf6 $8 Kd5 $11) 59. Bf6 {[%emt 0:00:07]} a3 {[%emt 0:00:04]} 60. g8=Q {[%emt 0:00:09]} (60. Be5 {with more complications.} Rg1 61. Bd4 Rg6 62. Kxa3 Kc4 63. Ba1) 60... Rxg8 {[%emt 0:00:05]} 61. Kxa3 {[%emt 0:00:05]} Kc4 {[%emt 0:00:04]} 62. Be5 {[%emt 0:02:41]} Re8 {[%emt 0:00:09]} 63. Bf6 {[%emt 0:00:07]} Re6 {[%emt 0:00:05]} 64. Bg7 {[%emt 0:00:11]} Rg6 {[%emt 0:00:14]} 65. Be5 {[%emt 0:00:07]} Rg5 {[%emt 0:00:06]} 66. Bf6 {[%emt 0:00:06]} Rg3+ {[%emt 0:00:05]} 67. Kb2 {[%emt 0:00:08]} Rf3 {[%emt 0:00:16]} 68. Bg7 {[%emt 0:00:07]} Rb3+ {[%emt 0:00:11]} 69. Ka2 {[%emt 0:00:19]} Rg3 {[%emt 0:00:09]} 70. Bf6 {[%emt 0:00:05]} Rf3 {[%emt 0:00:12]} 71. Bg7 {[%emt 0:00:05]} Kb4 {[%emt 0:00:05]} 72. Kb2 {[%emt 0:00:42]} Rf2+ {[%emt 0:00:06]} 73. Kc1 {[%emt 0:00:07]} Kc4 {[%emt 0:00:03]} 74. Be5 {[%emt 0:00:11]} Kd3 {[%emt 0:00:13]} 75. Bg7 {[%emt 0:00:06]} Rf7 {[%emt 0:00:05]} 76. Be5 {[%emt 0:00:07]} Re7 {[%emt 0:00:09]} 77. Bf6 {[%emt 0:00:13]} Re6 {[%emt 0:00:10]} 78. Bg7 {[%emt 0:00:05]} Rc6+ {[%emt 0:00:05]} 79. Kb2 {[%emt 0:00:05]} Rc7 {[%emt 0:00:04]} 80. Be5 {[%emt 0:00:05]} Rb7+ {[%emt 0:00:39]} 1/2-1/2

[Event "Chinese League Division-A 2024"]
[Site "Fuling Chongqing"]
[Date "2024.07.07"]
[Round "10.18"]
[White "Liu, Qingnan"]
[Black "Ma, Qun"]
[Result "1/2-1/2"]
[ECO "C67"]
[WhiteElo "2540"]
[BlackElo "2643"]
[Annotator "TA"]
[PlyCount "72"]
[EventDate "2024.06.28"]
[EventType "team-tourn"]
[EventCountry "CHN"]
[SourceTitle "playchess.com"]
[Source "ChessBase"]
[SourceQuality "1"]
[TimeControl "40/5400+30:1800+30"]

{[%evp 18,72,14,19,19,18,12,16,14,7,22,2,5,0,6,12,8,10,8,12,0,0,0,0,14,7,4,0,0,0,0,0,0,0,0,0,0,0,0,0,0,0,0,0,0,0,0,0,0,0,0,0,0,0,0,0,0]} 1. e4 {[%emt 0:00:03]} e5 {[%emt 0:00:15]} 2. Nf3 {[%emt 0:00:21]} Nc6 {[%emt 0:00:06]} 3. Bb5 {[%emt 0:01:07]} Nf6 {[%emt 0:00:10]} 4. O-O {[%emt 0:01:11][%cal Bh1f1,Bf1e1,Be1e5][%mdl 32]} Nxe4 {[%emt 0:00:10]} 5. Re1 {[%emt 0:01:06]} Nd6 {[%emt 0:00:08]} 6. Nxe5 {[%emt 0:00:17]} Be7 {[%emt 0:00:18]} 7. Bf1 {[%emt 0:00:42]} Nxe5 {[%emt 0:00:16]} 8. Rxe5 {[%emt 0:00:18]} O-O {[%emt 0:00:09]} 9. d4 {[%emt 0:00:21]} Bf6 {[%emt 0:00:15]} 10. Re1 {[%emt 0:00:24] The position is equal.} Re8 {[%emt 0:00:22]} 11. c3 {[%emt 0:00:37]} Rxe1 {[%emt 0:00:31]} 12. Qxe1 {[%emt 0:00:10]} Ne8 {[%emt 0:00:05][%cal Bd6e8,Be8g7,Bg7f5][%mdl 32]} 13. Bf4 {[%emt 0:00:27]} d5 {[%emt 0:00:16]} 14. Bd3 {[%emt 0:00:42]} g6 {[%emt 0:01:23]} 15. Nd2 {[%emt 0:00:44][%cal Bb1d2,Bd2f3,Bf3e5][%mdl 32]} Ng7 {[%emt 0:00:23]} 16. Qe2 {[%emt 0:02:49]} c6 {[%emt 0:00:40]} 17. Re1 {[%emt 0:02:50]} Bf5 {[%emt 0:00:12]} 18. Bxf5 {[%emt 0:00:43]} Nxf5 {[%emt 0:02:20]} 19. Nf3 {[%emt 0:00:27]} Ng7 {[%emt 0:00:31]} 20. Be5 {[%emt 0:00:35]} Ne6 {[%emt 0:00:26]} 21. Bxf6 {[%emt 0:00:33]} Qxf6 {[%emt 0:00:10]} 22. Ne5 {[%emt 0:00:11][%cal Of2f4]} Re8 {[%emt 0:00:55]} 23. Ng4 {[%emt 0:00:25]} Qd8 {[%emt 0:02:01]} 24. Qe5 {[%emt 0:00:50] [#] Black must now prevent Nf6+.} Ng7 {[%emt 0:00:12]} 25. Qxe8+ {[%emt 0:00:37]} Nxe8 {[%emt 0:00:14]} 26. Rxe8+ {[%emt 0:00:07]} Qxe8 {[%emt 0:00:03][%cal Re8e1]} 27. Nf6+ {[%emt 0:00:11]} Kf8 {[%emt 0:00:04]} 28. Nxe8 {[%emt 0:00:08]} Kxe8 $11 {[%emt 0:00:04][%mdl 4096] Endgame. KP-KP} 29. f4 {[%emt 0:00:20]} f5 {[%emt 0:00:23]} 30. Kf2 {[%emt 0:00:15]} Kf7 {[%emt 0:00:07]} 31. g3 {[%emt 0:00:09]} Kf6 {[%emt 0:00:11]} 32. Ke3 {[%emt 0:00:16]} Ke6 {[%emt 0:00:06]} 33. Kf2 {[%emt 0:00:43]} Kf7 {[%emt 0:00:07]} 34. Ke3 {[%emt 0:00:10]} Ke6 {[%emt 0:00:06]} 35. Kf2 {[%emt 0:00:06]} Kf7 {[%emt 0:00:06]} 36. Ke3 {[%emt 0:00:04]} Ke6 {[%emt 0:00:35] An uneventful encounter.   Weighted Error Value: White=0.02 (flawless) /Black=0.01 (flawless) .  OK:         	White=11    	Black=9      Best:        	White=1     	Black=2} 1/2-1/2

[Event "Chinese League Division-A 2024"]
[Site "Fuling Chongqing"]
[Date "2024.07.07"]
[Round "10.19"]
[White "Zhai, Mo"]
[Black "Hou, Yifan"]
[Result "0-1"]
[ECO "D63"]
[WhiteElo "2348"]
[BlackElo "2632"]
[Annotator "TA"]
[PlyCount "92"]
[EventDate "2024.06.28"]
[EventType "team-tourn"]
[EventCountry "CHN"]
[SourceTitle "playchess.com"]
[Source "ChessBase"]
[SourceQuality "1"]
[TimeControl "40/5400+30:1800+30"]

{[%evp 16,92,30,21,22,12,35,3,10,13,16,16,25,11,0,0,0,0,0,0,0,0,0,-14,-10,-13,-12,-13,-18,-25,-22,-24,0,0,0,0,0,0,0,-17,-12,-19,-4,-11,0,-78,-89,-80,-77,-87,-90,-90,-90,-94,-91,-88,-81,-78,-81,-131,-135,-154,-154,-188,-183,-464,-463,-444,-441,-7531,-5177,-1703,-1607,-29967,-29968,-29963,-495,-488,-466]} 1. d4 {[%emt 0:00:07]} Nf6 {[%emt 0:00:04]} 2. c4 {[%emt 0:00:05]} e6 {[%emt 0:00:04]} 3. Nc3 {[%emt 0:00:10]} d5 {[%emt 0:00:37]} 4. Bg5 {[%emt 0:00:37]} Nbd7 {[%emt 0:02:23]} 5. e3 {[%emt 0:00:34]} h6 {[%emt 0:01:00]} 6. Bh4 {[%emt 0:00:10]} Be7 {[%emt 0:02:56]} 7. Nf3 {[%emt 0:00:34]} O-O {[%emt 0:03:41]} 8. Rc1 {[%emt 0:00:32]} a6 {[%emt 0:02:32]} 9. c5 {[%emt 0:06:23]} c6 {[%emt 0:07:44]} 10. Be2 {[%emt 0:01:43]} b6 {[%emt 0:01:31]} 11. b4 {[%emt 0:01:23]} a5 {[%emt 0:00:46] The position is equal.} 12. a3 {[%emt 0:00:16]} axb4 {[%emt 0:04:21]} 13. axb4 {[%emt 0:00:07]} bxc5 {[%emt 0:00:04]} 14. bxc5 {[%emt 0:00:08]} e5 {[%emt 0:11:44]} 15. dxe5 {[%emt 0:15:52]} Ne4 {[%emt 0:02:15]} 16. Bxe7 {[%emt 0:04:59]} Qxe7 {[%emt 0:00:06]} 17. Nxe4 {[%emt 0:01:03]} dxe4 {[%emt 0:00:06]} 18. Nd4 {[%emt 0:00:18]} Nxe5 {[%emt 0:00:33]} 19. O-O {[%emt 0:01:57]} Be6 {[%emt 0:11:53]} 20. Nxe6 {[%emt 0:17:09]} Qxe6 {[%emt 0:00:10]} 21. Qd4 {[%emt 0:00:27]} Qf5 {[%emt 0:10:16]} 22. Ra1 {[%emt 0:06:39]} Rad8 {[%emt 0:02:07]} 23. Qb4 {[%emt 0:00:29]} Rfe8 {[%emt 0:09:06]} 24. Rfd1 {[%emt 0:03:13]} Rb8 {[%emt 0:11:09]} 25. Qc3 {[%emt 0:01:22]} Re6 {[%emt 0:00:04]} 26. Rd6 {[%emt 0:10:40]} Qf6 {[%emt 0:00:11]} 27. Qd4 {[%emt 0:03:16]} Rxd6 {[%emt 0:01:40]} 28. cxd6 {[%emt 0:00:08][%cal Oa1c1] [#]} c5 $1 {[%emt 0:00:10]} 29. Qa4 {[%emt 0:06:50]} (29. Qxc5 Nf3+ 30. gxf3 Qxa1+ 31. Kg2 exf3+ 32. Bxf3 Qf6 $17) 29... c4 {[%emt 0:06:13]} 30. Rc1 {[%emt 0:02:44]} (30. Rf1 $11 {keeps the balance.}) 30... Qxd6 $17 {[%emt 0:01:54] aiming for ...Kh7.} 31. Bxc4 {[%emt 0:02:44] [#]} Qc7 $1 $36 {[%emt 0:02:29][%cal Oc7c4][%mdl 2048] ...Qxc4! is the strong threat. Keeping White busy.} 32. h3 {[%emt 0:08:41] [#]} Nd3 $1 {[%emt 0:04:04]} 33. Ra1 {[%emt 0:01:04]} Nb2 $1 {[%emt 0:01:21][%csl LRa4,LRc4] Black is more active.} 34. Bxf7+ {[%emt 0:00:22]} Qxf7 {[%emt 0:00:56]} 35. Qxe4 {[%emt 0:00:07]} Rf8 {[%emt 0:00:23]} 36. f3 {[%emt 0:04:07]} Nc4 {[%emt 0:01:17]} 37. Qd4 {[%emt 0:01:25] Wards off Nd6} (37. Ra8 $142) 37... Qe6 {[%emt 0:00:35]} 38. e4 {[%emt 0:00:24]} Kh7 {[%emt 0:00:29]} 39. Kh2 {[%emt 0:00:39]} Ne5 {[%emt 0:00:27]} 40. Qc3 {[%emt 0:00:00]} (40. Rf1) 40... Qd6 $19 {[%emt 0:00:00]} 41. Kh1 {[%emt 0:01:18]} Nxf3 {[%emt 0:05:37] ( -> ...Qh2#)} 42. gxf3 {[%emt 0:02:41]} (42. e5 $142 Nxe5 (42... Qxe5 $2 43. Qxe5 Nxe5 44. Rc1 $19) 43. Qc2+ Ng6 44. Qe2) 42... Qg3 $1 {[%emt 0:00:05][%csl LRf3,LRh3]} 43. Qc2 {[%emt 0:01:06]} Qxh3+ {[%emt 0:00:07]} (43... Qxf3+ 44. Qg2 $11) 44. Qh2 {[%emt 0:00:52]} Qxf3+ {[%emt 0:00:08]} 45. Qg2 {[%emt 0:00:09]} Qh5+ {[%emt 0:00:53]} (45... Qf6 $142 46. Rg1 Qh4+ 47. Qh2 Rf4 (47... Qxe4+ 48. Qg2 $19) 48. Rg3 Rf1+ (48... Rxe4 $2 49. Qxh4 Rxh4+ 50. Kg2 $19) 49. Kg2 Rf2+ (49... Qxe4+ $2 {perishes.} 50. Kxf1 Qb1+ 51. Kg2 $18) 50. Kxf2 Qxh2+ 51. Kf3 g5 52. e5 Kg6 53. e6 Kf6 54. e7 Qxg3+ (54... Kxe7 55. Rg2) 55. Kxg3 Kxe7 56. Kg4 Kf6 57. Kg3 h5 58. Kg2 g4 59. Kg3 Kg5 60. Kh2 Kf4 61. Kg2 h4 62. Kh1 h3 63. Kg1 g3 (63... h2+ {is a self mate.} 64. Kh1 Ke4 65. Kxh2 Kf3 66. Kg1 Kg3 67. Kf1 Kh2 68. Kf2 g3+ 69. Ke3 g2 70. Ke4 g1=Q 71. Kd5 Qb6 72. Kc4 Qc6+ 73. Kb4 Kg2 74. Ka3 Qb5 75. Ka2 Kf2 76. Ka3 Ke3 77. Ka2 Kd3 78. Ka3 Kc3 79. Ka2 Qb2#) 64. Kf1 g2+ (64... h2 {gets mated.} 65. Kg2 h1=R 66. Kxh1 Kf3 67. Kg1 g2 68. Kh2 Kf2 69. Kh3 g1=Q 70. Kh4 Qg6 71. Kh3 Qh5#) 65. Kf2 Ke4 66. Kg1 Kf3 67. Kh2 Kf2 68. Kxh3 g1=Q (68... g1=R 69. Kh4 Kf3 70. Kh5 Kf4 71. Kh6 Kf5 72. Kh7 Kf6 73. Kh8 Kf7 74. Kh7 Rh1#) 69. Kh4 Qg6 70. Kh3 Qh5#) 46. Qh2 {[%emt 0:00:25]} Qg4 {[%emt 0:00:38] Weighted Error Value: White=0.45/Black=0.18 (very precise) .  Mistake:       	White=4     	---        Inaccurate:     	White=1     	---        OK:         	White=15    	Black=12     Best:        	White=2     	Black=6      Strong:       	---       	Black=2      Brilliant:      	---       	Black=1} 0-1

[Event "Chinese League Division-A 2024"]
[Site "Fuling Chongqing"]
[Date "2024.07.07"]
[Round "10.20"]
[White "Hu, Yu A."]
[Black "Yan, Tianqi"]
[Result "1/2-1/2"]
[ECO "B85"]
[WhiteElo "2127"]
[BlackElo "2306"]
[Annotator "TA"]
[PlyCount "60"]
[EventDate "2024.06.28"]
[EventType "team-tourn"]
[EventCountry "CHN"]
[SourceTitle "playchess.com"]
[Source "ChessBase"]
[SourceQuality "1"]
[TimeControl "40/5400+30:1800+30"]

{[%evp 26,60,18,4,24,1,9,0,18,-2,-4,-8,-11,-8,-13,0,-10,-11,27,31,35,36,32,31,39,33,36,24,24,25,27,18,33,22,32,30,47]} 1. e4 {[%emt 0:00:07]} c5 {[%emt 0:00:14]} 2. Nf3 {[%emt 0:00:22]} e6 {[%emt 0:00:20]} 3. d4 {[%emt 0:00:25]} cxd4 {[%emt 0:00:16]} 4. Nxd4 {[%emt 0:00:07]} Nc6 {[%emt 0:00:20]} 5. Nc3 {[%emt 0:00:32]} a6 {[%emt 0:01:47]} 6. Be3 {[%emt 0:01:47]} Qc7 {[%emt 0:01:10]} 7. Be2 {[%emt 0:01:57]} Nf6 {[%emt 0:00:44]} 8. O-O {[%emt 0:02:49]} Be7 {[%emt 0:02:35]} 9. f4 {[%emt 0:01:23]} d6 {[%emt 0:00:23]} 10. Qe1 {[%emt 0:01:15]} O-O {[%emt 0:00:55]} 11. Qg3 {[%emt 0:00:31]} Nxd4 {[%emt 0:00:53]} 12. Bxd4 {[%emt 0:00:06]} b5 {[%emt 0:00:21]} 13. a3 {[%emt 0:00:59]} Bb7 {[%emt 0:00:58]} 14. Rae1 {[%emt 0:00:57]} Rad8 {[%emt 0:03:02]} 15. Bd3 {[%emt 0:01:17]} Qd7 {[%emt 0:02:28]} 16. Kh1 {[%emt 0:10:59]} Bc6 {[%emt 0:04:54] The position is equal.} 17. Bxf6 {[%emt 0:17:29]} Bxf6 {[%emt 0:00:09]} 18. e5 {[%emt 0:00:04]} dxe5 {[%emt 0:25:59]} 19. fxe5 {[%emt 0:00:07]} Be7 {[%emt 0:00:08]} 20. Ne4 {[%emt 0:00:27]} Bxe4 {[%emt 0:04:00]} 21. Rxe4 {[%emt 0:01:23]} f5 {[%emt 0:02:27]} 22. exf6 {[%emt 0:00:30]} Rxf6 {[%emt 0:00:53]} 23. Rxf6 {[%emt 0:04:34]} Bxf6 {[%emt 0:00:09]} 24. Qh3 {[%emt 0:00:33]} e5 {[%emt 0:10:51]} 25. Qxd7 {[%emt 0:02:21]} Rxd7 $14 {[%emt 0:00:08] KRB-KRB} 26. a4 {[%emt 0:00:02]} bxa4 {[%emt 0:03:22]} 27. Rxa4 {[%emt 0:00:05][%cal Ob2b3]} (27. Bxa6 $2 {leads to mate.} Rd1+) 27... a5 {[%emt 0:00:18][%cal Oe5e4]} 28. Kg1 {[%emt 0:00:30]} Bd8 {[%emt 0:00:35]} 29. Kf1 {[%emt 0:00:36]} Rb7 {[%emt 0:01:29]} 30. b3 {[%emt 0:00:09]} h6 {[%emt 0:00:07] Weighted Error Value: White=0.09 (flawless) /Black=0.10 (very precise) .  Inaccurate:     	---       	Black=1      OK:         	White=4     	Black=2      Best:        	White=1     	Black=1} 1/2-1/2

[Event "Chinese League Division-A 2024"]
[Site "Fuling Chongqing"]
[Date "2024.07.07"]
[Round "10.21"]
[White "Xu, Yinglun"]
[Black "Zeng, Chongsheng"]
[Result "1/2-1/2"]
[ECO "D38"]
[WhiteElo "2526"]
[BlackElo "2578"]
[Annotator "TA"]
[PlyCount "83"]
[EventDate "2024.06.28"]
[EventType "team-tourn"]
[EventCountry "CHN"]
[SourceTitle "playchess.com"]
[Source "ChessBase"]
[SourceQuality "1"]
[TimeControl "40/5400+30:1800+30"]

{[%evp 18,83,18,10,9,8,23,15,19,13,12,8,8,15,8,21,10,6,19,12,13,9,10,5,7,6,7,0,0,0,0,0,2,0,0,0,0,0,0,0,4,0,5,0,1,0,0,0,0,0,2,0,0,0,0,0,0,0,0,-16,0,0,0,0,0,0,0,0]} 1. Nf3 {[%emt 0:00:04]} Nf6 {[%emt 0:00:18]} 2. c4 {[%emt 0:00:19]} e6 {[%emt 0:00:07]} 3. Nc3 {[%emt 0:00:45]} d5 {[%emt 0:00:09]} 4. d4 {[%emt 0:01:25]} Bb4 {[%emt 0:00:24]} 5. Bg5 {[%emt 0:01:08]} h6 {[%emt 0:00:13]} 6. Bxf6 {[%emt 0:00:10]} Qxf6 {[%emt 0:00:02]} 7. e3 {[%emt 0:00:10]} O-O {[%emt 0:00:39]} 8. Rc1 {[%emt 0:00:46]} dxc4 {[%emt 0:00:13]} 9. Bxc4 {[%emt 0:00:09]} c5 {[%emt 0:00:05]} 10. O-O {[%emt 0:00:35] Threatening Ne4.} cxd4 {[%emt 0:00:09]} 11. Ne4 {[%emt 0:00:45]} Qe7 {[%emt 0:00:17]} 12. a3 {[%emt 0:01:16]} Ba5 {[%emt 0:00:09] The position is equal.} 13. Qxd4 {[%emt 0:00:55]} Rd8 {[%emt 0:01:14]} 14. Qc5 {[%emt 0:03:20]} Qxc5 {[%emt 0:01:13]} 15. Nxc5 {[%emt 0:00:08]} Nd7 {[%emt 0:00:19]} 16. Nb3 {[%emt 0:01:24]} Bb6 {[%emt 0:00:10]} 17. Be2 {[%emt 0:01:27]} Nf6 {[%emt 0:01:06]} 18. Ne5 {[%emt 0:01:03]} Bd7 {[%emt 0:03:09]} 19. Nxd7 {[%emt 0:00:31]} Rxd7 {[%emt 0:00:05]} 20. Rfd1 {[%emt 0:03:41]} Rad8 {[%emt 0:00:24]} 21. Rxd7 {[%emt 0:00:13]} Rxd7 {[%emt 0:00:02]} 22. Rd1 {[%emt 0:00:10]} Rxd1+ {[%emt 0:00:04]} 23. Bxd1 $11 {[%emt 0:00:06][%mdl 4096] Endgame. KBN-KBN} Ne4 {[%emt 0:00:06]} 24. Kf1 {[%emt 0:00:12]} Nc5 {[%emt 0:00:12]} 25. Nxc5 {[%emt 0:00:10]} Bxc5 {[%emt 0:00:05] KB-KB} 26. Ke2 {[%emt 0:00:22]} Kf8 {[%emt 0:00:04]} 27. Kd3 {[%emt 0:00:08]} Ke7 {[%emt 0:00:06]} 28. h3 {[%emt 0:00:09]} Kd6 {[%emt 0:00:12]} 29. Bh5 {[%emt 0:00:10]} (29. b4 $5 Bb6 $8 30. Bf3 $11) 29... f5 {[%emt 0:00:31]} 30. Bd1 {[%emt 0:00:40]} (30. b4 $5 Bb6 $8 31. Bf3 $11) 30... b5 {[%emt 0:00:12]} 31. a4 {[%emt 0:00:35]} (31. b4 $5 Bb6 $8 32. Bh5 $11) 31... a6 {[%emt 0:00:15]} 32. axb5 {[%emt 0:00:08]} axb5 {[%emt 0:00:05]} 33. Bb3 {[%emt 0:00:19]} g5 {[%emt 0:00:06]} 34. f3 {[%emt 0:00:15]} Ke5 {[%emt 0:00:07]} 35. g4 {[%emt 0:00:13]} f4 {[%emt 0:00:07]} 36. e4 {[%emt 0:00:05]} Bd4 {[%emt 0:00:08]} 37. Bxe6 {[%emt 0:00:15]} Bxb2 {[%emt 0:00:04]} 38. Bd5 {[%emt 0:00:06]} b4 {[%emt 0:00:35]} 39. Bb3 {[%emt 0:00:09]} Bc3 {[%emt 0:00:06]} 40. Bd5 {[%emt 0:00:00]} Bb2 {[%emt 0:00:00]} 41. Bb3 {[%emt 0:00:10]} Bc3 {[%emt 0:00:09]} 42. Bd5 {[%emt 0:00:06] An even fight not without its subleties.   Weighted Error Value: White=0.03 (flawless) /Black=0.02 (flawless) .  OK:         	White=10    	Black=11     Best:        	---       	Black=1} 1/2-1/2